Cogmind - Beta 11 @@@ ROGUE MODE // 2022.04.13 @ 00:48:56 Player: Momo Result: Destroyed by 8R-AWN with 8R-AWN's Boregun Performance ------------- Evolutions (0) 0 Regions Visited (3) 600 Robots Destroyed (20) 100 Value Destroyed (400) 400 Prototype IDs (2) 40 Alien Tech Used (0) 0 Bonus (325) 325 TOTAL SCORE: 1465 Bonus ------- High Alert Combat Kills 25 Aligned with FarCom 300 Cogmind --------- Core Integrity 0/250 Matter 300/300 Energy 96/100 System Corruption 0% Temperature Cool (0) Movement Core (50) Location -10/Exiles Parts ------- > --- POWER (1) -------- (None) > --- PROPULSION (2) --- (None) > --- UTILITY (2) ------ Signal Interpreter > --- WEAPON (2) ------- Longsword +1 > --- INVENTORY (5) ---- (None) Peak State ------------ > --- POWER ------------ Light Ion Engine > --- PROPULSION ------- Hover Unit Hover Unit > --- UTILITY ---------- Small Storage Unit Signal Interpreter > --- WEAPON ----------- Field Lobotomy Kit Longsword +1 > --- INVENTORY -------- Large Storage Unit Army-in-a-Box Rocket Launcher [Rating: 28] Favorites ----------- Power Light Ion Engine Engine Light Ion Engine Propulsion Hover Unit Leg Aluminum Leg Hover Unit Hover Unit Utility Small Storage Unit Storage Small Storage Unit Processor Signal Interpreter Weapon Longsword +1 Energy Gun EM Pulse Gun Launcher Grenade Launcher Special Weapon Field Lobotomy Kit Slashing Weapon Longsword +1 Build | -11 -10 -10 -10 ------- Run | Scr Mat Min Exi Slots Evolved . | . . . . Power . | . . . . Propulsion . | . . . . Utility . | . . . . Weapon . | . . . . Parts Attached 13 | 6 3 1 3 Power 1 | 1 . . . Engine 1 | 1 . . . Core . | . . . . Reactor . | . . . . Propulsion 4 | 2 2 . . Treads . | . . . . Leg 2 | 2 . . . Wheel . | . . . . Hover 2 | . 2 . . Flight . | . . . . Utility 2 | 1 . . 1 Device . | . . . . Storage 1 | 1 . . . Processor 1 | . . . 1 Hackware . | . . . . Protection . | . . . . Artifact . | . . . . Weapon 6 | 2 1 1 2 Energy Gun 2 | 2 . . . Energy Cannon . | . . . . Ballistic Gun . | . . . . Ballistic Cannon . | . . . . Launcher 2 | . 1 1 . Special Weapon 1 | . . . 1 Impact Weapon . | . . . . Slashing Weapon 1 | . . . 1 Piercing Weapon . | . . . . Special Melee Weapon . | . . . . Unidentified Prototypes 2 | . . . 2 Parts Lost 4 | . . 1 3 Power 1 | . . . 1 Propulsion 2 | . . . 2 Utility . | . . . . Weapon 1 | . . 1 . Highest Loss Streak 3 | . . 1 3 To Critical Strikes . | . . . . Average Slot Usage (%) 80 | . 75 66 87 Engine 13 | . 14 14 13 Hover 26 | . 25 28 27 Storage 13 | . 14 14 13 Processor 2 | . . . 4 Energy Gun 1 | . 8 . . Launcher 4 | . 10 9 1 Special Weapon 7 | . . . 12 Slashing Weapon 7 | . . . 12 Naked Turns . | . . . . Heaviest Build 19 | 11 11 12 19 Greatest Support 20 | 20 20 12 12 Greatest Overweight (x) 1 | . 1 . 1 Average Overweight (x) . | . . . . Largest Inventory Capacity 8 | 8 8 8 8 Average Capacity 7 | 7 8 8 7 Most Carried 8 | . 2 7 8 Average Carried 5 | . 1 5 6 Final Capacity 8 | 8 8 8 5 Final Carried 7 | . 2 7 . Class Distribution -------------------- 100% | Mutant Dominant Class ---------------- Mutant | -10/Materials Mutant | -10/Mines Mutant | -10/Exiles Resources | -11 -10 -10 -10 ----------- Run | Scr Mat Min Exi Matter Collected 506 | 100 204 . 202 Remotely . | . . . . Salvage Created 356 | . 337 19 . Parts 31 | . 28 3 . Haulers Intercepted . | . . . . Recyclers Shooed 2 | . 2 . . Parts Field Recycled . | . . . . Retrieved Matter . | . . . . Parts Self-Destructed . | . . . . Prevented . | . . . . Kills | -11 -10 -10 -10 ------- Run | Scr Mat Min Exi Combat Hostiles Destroyed 14 | . 11 3 . AOE 14 | . 11 3 . Classes Destroyed 6 | . 6 . . Worker 1 | . 1 . . Tunneler 1 | . 1 . . Recycler 3 | . 3 . . Watcher 1 | . 1 . . Swarmer 6 | . 3 3 . Grunt 8 | . 8 . . Best Kill Streak 8 | . 8 3 . Combat Bots Only 5 | . 5 3 . Max Kills in Single Turn 3 | . 2 3 . Gunslinging . | . . . . Exploded 3 | . 2 3 . Melee . | . . . . Uniques/NPCs Destroyed . | . . . . Combat | -11 -10 -10 -10 -------- Run | Scr Mat Min Exi Damage Taken 641 | . 152 33 456 Core 267 | . 50 10 207 Absorbed by Shields . | . . . . Core Remaining (%) 100 | 100 . . . Volleys Fired 24 | . 18 1 5 Largest 1 | . 1 1 1 Hottest 33 | . 30 33 . Shots Fired 24 | . 18 1 5 Gun . | . . . . Cannon . | . . . . Launcher 19 | . 18 1 . Special 5 | . . . 5 Kinetic . | . . . . Thermal . | . . . . Explosive 19 | . 18 1 . Electromagnetic . | . . . . Robot Hit Streak 5 | . 4 . 5 Robot Miss Streak 4 | . 4 . . Penetration Max . | . . . . Secondary Targets . | . . . . Shots Hit Robots 13 | . 7 . 6 Core Hits 33 | . 30 3 . Critical Kills . | . . . . Critical Parts Destroyed . | . . . . Critical Strikes . | . . . . Melee Attacks 1 | . . . 1 Impact . | . . . . Slashing 1 | . . . 1 Piercing . | . . . . Sneak Attacks . | . . . . Combat Hostiles . | . . . . Follow-up Attacks . | . . . . Damage Inflicted 1316 | . 1131 127 58 Guns . | . . . . Cannons . | . . . . Explosions 1258 | . 1131 127 . Melee 58 | . . . 58 Ramming . | . . . . Kinetic . | . . . . Thermal . | . . . . Explosive 1258 | . 1131 127 . Electromagnetic . | . . . . Impact . | . . . . Slashing 58 | . . . 58 Piercing . | . . . . Highest Corruption . | . . . . Average Corruption . | . . . . Corruption Purged . | . . . . Corruption Blocked . | . . . . Overload Shots . | . . . . Overflow Damage 26 | . 26 . . Projectiles . | . . . . Explosions 26 | . 26 . . Melee . | . . . . Knockbacks . | . . . . Impact . | . . . . Kinetic . | . . . . Secondary . | . . . . Self-Inflicted Damage 18 | . 18 . . Shots 2 | . 2 . . Rammed . | . . . . Targets Rammed . | . . . . Kicked . | . . . . Crushed . | . . . . Highest Temperature 6 | . 6 . . Average Temperature 3 | . 3 . . Received Heat Transfer 68 | . 39 9 20 Siege Activations . | . . . . Robots Corrupted . | . . . . Combat Hostiles . | . . . . Parts Fried . | . . . . Impact Corruptions . | . . . . Robots Melted . | . . . . Combat Hostiles . | . . . . Parts Melted . | . . . . Heat Transferred . | . . . . Parts Sabotaged . | . . . . Parts Stolen . | . . . . Parts Stripped . | . . . . Power Chain Reactions . | . . . . Missiles Intercepted . | . . . . Alert | -11 -10 -10 -10 ------- Run | Scr Mat Min Exi Peak Influence 617 | . 617 365 . Initial 240 | . . 240 . Average 260 | . 281 308 . Maximum Alert Level 2 | . 2 1 . Low Security (%) 32 | 100 42 1 . Level 1 45 | . 13 98 . Level 2 21 | . 44 . . Level 3 . | . . . . Level 4 . | . . . . Level 5 . | . . . . High Security . | . . . . Max Security . | . . . . Squads Dispatched 4 | . 4 . . Investigation 1 | . 1 . . Extermination . | . . . . Reinforcement 3 | . 3 . . Assault . | . . . . Garrison . | . . . . Intercept . | . . . . Searches Triggered . | . . . . Construction Impeded . | . . . . Haulers Reinforced . | . . . . Active Scanning Responses . | . . . . Cargo Convoy Interrupts . | . . . . Stealth | -11 -10 -10 -10 --------- Run | Scr Mat Min Exi Distress Signals 1 | . 1 . . Communications Jammed . | . . . . Distress Signals . | . . . . Times Spotted 33 | . 20 5 8 Peak Tracking Total 9 | . 6 3 9 Tactical Retreats 2 | . 1 1 . Traps | -11 -10 -10 -10 ------- Run | Scr Mat Min Exi Traps Triggered 1 | . 1 . . Indirectly . | . . . . Trap Hack Attempts . | . . . . Triggered . | . . . . Disarmed . | . . . . Reprogrammed . | . . . . Reused 1 | . . . 1 Traps Extracted . | . . . . Installed 4 | . . . 4 Triggered . | . . . . Most Traps Carried 4 | . . 4 4 Machines | -11 -10 -10 -10 ---------- Run | Scr Mat Min Exi Machines Disabled . | . . . . Max in Single Turn . | . . . . Machines Sabotaged . | . . . . Garrisons Compromised . | . . . . Overloaded Fab Kills . | . . . . Hacking | -11 -10 -10 -10 --------- Run | Scr Mat Min Exi Machines Accessed 2 | . 2 . . Terminals 2 | . 2 . . Fabricators . | . . . . Repair Stations . | . . . . Recycling Units . | . . . . Scanalyzers . | . . . . Garrison Access . | . . . . Total Hacks 4 | . 4 . . Successful 3 | . 3 . . Failed 1 | . 1 . . Catastrophic . | . . . . Database Lockouts . | . . . . Manual 3 | . 2 . 1 Terminals 4 | . 4 . . Fabricators . | . . . . Repair Stations . | . . . . Recycling Units . | . . . . Scanalyzers . | . . . . Garrison Access . | . . . . Terminal Hacks 2 | . 2 . . Branch Access Points 1 | . 1 . . Locate Traps 1 | . 1 . . Fabricator Hacks . | . . . . Repair Station Hacks . | . . . . Recycling Unit Hacks . | . . . . Scanalyzer . | . . . . Garrison Access Hacks . | . . . . Unauthorized Hacks 1 | . 1 . . Terminals 1 | . 1 . . Assimilate 1 | . 1 . . Fabricators . | . . . . Repair Stations . | . . . . Recycling Units . | . . . . Scanalyzers . | . . . . Garrison Access . | . . . . Data Cores Recovered . | . . . . Used . | . . . . Hacking Detections 1 | . 1 . . Full Trace Events . | . . . . Feedback Events . | . . . . Feedback Blocked . | . . . . Robot Schematics Acquired . | . . . . Robots Built . | . . . . Authchips . | . . . . Time . | . . . . Total Robot Build Rating . | . . . . Part Schematics Acquired . | . . . . Parts Built . | . . . . Authchips . | . . . . Time . | . . . . Total Part Build Rating . | . . . . Parts Repaired . | . . . . Time . | . . . . Parts Recycled . | . . . . Recycled Matter . | . . . . Retrieved Matter . | . . . . Retrieved Components . | . . . . Parts Scanalyzed . | . . . . Part Schematics Acquired . | . . . . Parts Damaged . | . . . . Bothacking | -11 -10 -10 -10 ------------ Run | Scr Mat Min Exi Used RIF Installer . | . . . . Robots Hacked . | . . . . Non-combat . | . . . . Combat . | . . . . Robot Hacks Applied . | . . . . Relay Couplers Released . | . . . . Fabnet Peak Effective % . | . . . . Robots Rewired . | . . . . Allies Hacked . | . . . . Hacks Repelled . | . . . . Allies | -11 -10 -10 -10 -------- Run | Scr Mat Min Exi Total Allies 6 | . . 3 3 Largest Group 3 | . . 3 1 Highest-Rated Group 40 | . . 40 16 Highest-Rated Ally 16 | . . 16 16 Total Orders . | . . . . Ally Attacks 13 | . . 9 4 Total Damage 144 | . . 126 18 Kills 2 | . . 2 . Allies Corrupted . | . . . . Allies Melted . | . . . . Field Lobotomies 3 | . . . 3 Intel | -11 -10 -10 -10 ------- Run | Scr Mat Min Exi Robot Analysis Total . | . . . . Derelict Logs Recovered 1 | . . 1 . Drone Launches . | . . . . Drone Recoveries . | . . . . Exploration | -11 -10 -10 -10 ------------- Run | Scr Mat Min Exi Turns Passed 990 | 48 207 170 565 Spaces Moved 1031 | 36 265 209 521 Core 9 | 5 . . 4 Treads . | . . . . Legs 43 | 31 12 . . Wheels . | . . . . Hover 979 | . 253 209 517 Flight . | . . . . Fastest Speed 50 | 50 56 56 50 Average Speed 82 | 110 59 56 102 Slowest Speed 120 | 120 120 56 116 Overloaded Moves . | . . . . Propulsion Burnouts . | . . . . Robots Hopped . | . . . . Cave-ins Triggered . | . . . . Exploration Rate (%) 41 | 4 58 36 68 Regions Visited 3 Branch Regions 2 Pre-discovered Areas 1 | . . 1 . Known Exits Taken 1 | . 1 . . Unknown Exits Taken 2 | 1 . 1 . Scrap Searched . | . . . . Spaces Dug . | . . . . Terrain Destroyed 112 | . 99 13 . Melee . | . . . . Projectile . | . . . . AOE 112 | . 99 13 . Terrain Rammed . | . . . . Walls Destroyed . | . . . . Machines Disabled . | . . . . Actions | -11 -10 -10 -10 --------- Run | Scr Mat Min Exi Total 1141 | 41 296 260 544 Wait 50 | . 6 44 . Move 1028 | 35 264 208 521 Hop . | . . . . Pick Up 10 | . 2 6 2 Fast Attach 10 | 6 2 . 2 Attach 2 | . . 1 1 Detach 1 | . . . 1 Swap 1 | . 1 . . Drop 10 | . 3 . 7 Fire 24 | . 18 1 5 Melee 1 | . . . 1 Ram . | . . . . Kick . | . . . . Crush . | . . . . Escape Stasis . | . . . . Rewire . | . . . . Trap 4 | . . . 4 Miscellaneous . | . . . . Route ------- -11/Scrapyard -10/Materials (discovered 4 exits: [*Mat x3] / *Min) -10/Mines (discovered 3 exits: [*Mat x2] / *Exi) -10/Exiles History --------- Turn | Location | Event 17 | -11/Scrapyard | Discovered new exit (range 15) 49 | -11/Scrapyard | Entered Materials 108 | -10/Materials | Discovered new exit (range 13) 150 | -10/Materials | Discovered new exit (range 8) 184 | -10/Materials | Discovered new exit (range 15) 195 | -10/Materials | Identified exit to Mines 256 | -10/Materials | Entered Mines 258 | -10/Mines | Learned 2 Materials zone layouts 259 | -10/Mines | Assisted by bots powering up and referring to "LRC-V3" 286 | -10/Mines | Found a hidden stash of uninstalled traps 308 | -10/Mines | Build established: Mutant 311 | -10/Mines | Received a Rocket Launcher from a helpful Derelict 316 | -10/Mines | Discovered new exit (range 14) 318 | -10/Mines | Learned location of Storage (-8) 336 | -10/Mines | Discovered new exit (range 6) 413 | -10/Mines | Deemed a non-threat by the Exiles lab entrance 414 | -10/Mines | Discovered new exit (range 5) 426 | -10/Mines | Entered Exiles 426 | -10/Exiles | Accompanied by 1 ally 441 | -10/Exiles | Met 8R-AWN 449 | -10/Exiles | Met EX-HEX 466 | -10/Exiles | Met EX-BIN 473 | -10/Exiles | Aligned with FarCom system 474 | -10/Exiles | Given EX-Vault access code 487 | -10/Exiles | Opened EX-Vault 490 | -10/Exiles | Found Prototype Special Weapon 490 | -10/Exiles | Identified Field Lobotomy Kit 495 | -10/Exiles | Found Prototype Slashing Weapon 495 | -10/Exiles | Identified Longsword +1 528 | -10/Exiles | Warned to stay clear of 0b10 Research branches 559 | -10/Exiles | Met EX-DEC 795 | -10/Exiles | Found Prototype Device 973 | -10/Exiles | Attacked by the Exiles 978 | -10/Exiles | Assimilated as-87647 with FLK Orb 981 | -10/Exiles | Assimilated as-57492 with FLK Orb 984 | -10/Exiles | Core integrity fell below 50% 984 | -10/Exiles | Assimilated as-00021 with FLK Orb 990 | -10/Exiles | Core integrity fell below 20% 991 | -10/Exiles | Destroyed by 8R-AWN with 8R-AWN's Boregun Last Messages --------------- 00984_ HV Slug penetrates Machine. 00984_ Machine disabled. 00984_ HV Slug penetrates Wall. 00986_ as-00021 destroyed. 00987_ Penetrated by HV Slug. 00987_ HV Slug penetrates as-67004. 00987_ as-67004 suffers critical hit (Destroy). 00987_ as-67004 destroyed. 00987_ HV Slug penetrates Wall. 00987_ HV Slug penetrates as-16955. 00987_ as-16955 suffers critical hit (Destroy). 00987_ as-16955 destroyed. 00987_ Dropped Sml. Storage Unit. 00989_ Penetrated by HV Slug. 00989_ HV Slug penetrates Machine. 00989_ Penetrated by HV Slug. 00989_ HV Slug penetrates Wall. 00991_ Penetrated by HV Slug. 00991_ HV Slug penetrates Wall. 00991_ Penetrated by HV Slug. Map ----- +----------------------------------------------------+ | """"#???????????????????????????????????????????? | | """#???????????????????????????????????????????? | | """#???????????????????????????????????????????? | | """#???????????????????????????????????????????? | | """#???????????????????????????????????????????? | | """#???????????????????????????????????????????? | | """"???????????????????????????????????????????? | | """#???????????????????????????????????????????? | | " """"???????????????????????????????????????????? | | " #???????????????????????????????????????????? | | """""#???????????????????????????????????????????? | | ######???????????????????????????????????????????? | | ?????????????????????????????????????????????????? | | ?????????????????????????????????????????????????? | | ?????????????????????????????????????????????????? | | ?###########???????????????????????????????????? ? | | ##"""""""""##??????????????????????????????????? | | " """ """"##?????????????????????????????????# | | "" " #???????????????????????????????## | | " """#???????????????????????????????# | | " "#???????????#####???????????????# | | " "##?????????##" #??????????????## | | ""###???????#" ^#?????????????## | | """#??????##" ^^##????????????# | | "#????### g ###????????### # | | ##???# @ ########## # | | ##?## #""""## #? | | " ### * ## | | %a ## * # | | %!! #### # | | %[ %a ""#?#"""""#### | | %* ; "##?#######??#### * | | % ;#####??????????????##### | | ;#???????????????????????### | | " ;#??????????????????????????### | | """ ""#?????????????????????????????### | | " ""#" "##??????????????????????????????#" | | "" """##" """""##???????????????????????????????## | | #""""###########?????????????????????????????????? | | ######???????????????????????????????????????????? | | ?????????????????????????????????????????????????? | | ?????????????????????????????????????????????????? | | ?????????????????????????????????????????????????? | | ?????????????????????????????????????????????????? | | ?????????????????????????????????????????????????? | | ?????????????????????????????????????????????????? | | ?????????????????????????????????????????????????? | | ?????????????????????????????????????????????????? | | ?????????????????????????????????????????????????? | | ?????????????????????????????????????????????????? | +----------------------------------------------------+ Best States ------------- Heat Dissipation 25 Energy Generation 10 Energy Capacity 125 Matter Stores 300 Matter Capacity 300 Sight Range 16 Terrain Scan Density 10 Evasion (%) 55 Item Schematics ----------------- None Robot Schematics ------------------ None Fabricated ------------ Nothing Alien Tech Used ----------------- None Achievements -------------- None Challenges ------------ None Game ------ Seed SmartbombLinkedMeganuke Manual? 0 Play Time 00:10:15 Cumulative 240.5 hours Start 2022.04.13 @ 00:39:45 End 2022.04.13 @ 00:48:56 Sessions 1 Manual Loads 0 Difficulty Rogue Special Mode None Game No. 114 Rogue 110 Adventurer 0 Explorer 4 Win Type - Total 14 Types 4/0/2/2/1/2/3/0/0 Lore% 71 Gallery% 79 Achievement% 69 Wizard Run 0 Options --------- ASCII 0 Keyboard 0 Movement Mouse Keybinds 0 Fullscreen 1 Font 18/SmallcapsGlow Map View 76x50 Tactical HUD 1 Map Filters NONE Filters NONE Steam 1 RUN: 18cf93f1-45cf-44d3-b4ad-2a6339a2f432